Cogmind - Beta 13 @@@ ROGUE MODE // 2024.06.26 @ 21:51:18 Player: celerysam Result: Destroyed by G-47 Trooper with Particle Gun Performance ------------- Evolutions (2) 1000 Regions Visited (3) 600 Robots Destroyed (24) 120 Value Destroyed (658) 658 Prototype IDs (1) 20 Alien Tech Used (0) 0 Bonus (21) 21 TOTAL SCORE: 2419 Bonus ------- High Alert Combat Kills 21 Cogmind --------- Core Integrity 0/550 Matter 290/300 Energy 280/280 System Corruption 2% Temperature Cool (33) Movement Rolling (95) Ox1 Location -8/Materials Parts ------- > --- POWER (2) -------- Cooled Ion Engine > --- PROPULSION (4) --- Wheel > --- UTILITY (3) ------ Machine Analyzer Improved Signal Interpreter > --- WEAPON (2) ------- Shock Bomb Launcher Mace > --- INVENTORY (5) ---- Cryofiber Web Minigun Improved Light Cannon Datajack Peak State ------------ > --- POWER ------------ Cooled Ion Engine Nuclear Core > --- PROPULSION ------- Wheel > --- UTILITY ---------- Machine Analyzer Improved Sensor Array Improved Signal Interpreter > --- WEAPON ----------- Shock Rifle Mace > --- INVENTORY -------- Cryofiber Web Heat Sink Minigun Improved Light Cannon Datajack [Rating: 22] Favorites ----------- Power Nuclear Core Engine Ion Engine Power Core Nuclear Core Propulsion Light Treads Treads Light Treads Leg Aluminum Leg Wheel Wheel Hover Unit Airjet Flight Unit Flight Unit Utility Small Storage Unit Device Improved Sensor Array Storage Small Storage Unit Processor Improved Signal Interpreter Weapon Mace Energy Gun Shock Rifle Ballistic Gun Light Assault Rifle Ballistic Cannon Flak Cannon Launcher Mini Grenade Launcher Impact Weapon Mace Build | -11 -10 -9 -8 ------- Run | Yrd Mat Mat Mat Slots Evolved 4 | . . 2 2 Power 1 | . . . 1 Propulsion 2 | . . 2 . Utility 1 | . . . 1 Weapon . | . . . . Parts Attached 54 | 7 3 14 30 Power 11 | 1 1 2 7 Engine 5 | 1 1 . 3 Core 6 | . . 2 4 Reactor . | . . . . Propulsion 18 | 2 2 6 8 Treads 4 | . 2 2 . Leg 5 | . . . 5 Wheel 3 | 2 . . 1 Hover 2 | . . . 2 Flight 4 | . . 4 . Utility 7 | 1 . 1 5 Device 2 | . . . 2 Storage 2 | 1 . . 1 Processor 3 | . . 1 2 Hackware . | . . . . Protection . | . . . . Artifact . | . . . . Weapon 18 | 3 . 5 10 Energy Gun 5 | . . 3 2 Energy Cannon . | . . . . Ballistic Gun 5 | 3 . 1 1 Ballistic Cannon 3 | . . . 3 Launcher 2 | . . 1 1 Special Weapon . | . . . . Impact Weapon 3 | . . . 3 Slashing Weapon . | . . . . Piercing Weapon . | . . . . Special Melee Weapon . | . . . . Unidentified Prototypes 1 | . . . 1 Corrupted Parts 1 | . . . 1 System Corruption 2 | . . . 2 Parts Lost 17 | . . 5 12 Power 4 | . . . 4 Propulsion 8 | . . 4 4 Utility 1 | . . . 1 Weapon 4 | . . 1 3 Highest Loss Streak 6 | . . 5 6 To Critical Strikes . | . . . . Average Slot Usage (%) 67 | . 84 89 57 Engine 6 | . 14 2 4 Core 4 | . . 8 4 Treads 6 | . 18 4 3 Leg 1 | . . . 2 Wheel 3 | . 8 . 2 Flight 3 | . . 30 . Device 4 | . . . 6 Storage 8 | . 14 11 6 Processor 8 | . . 10 10 Energy Gun 4 | . . 7 5 Ballistic Gun 7 | . 28 11 . Launcher 1 | . . 3 1 Impact Weapon 3 | . . . 5 Naked Turns . | . . . . Heaviest Build 23 | 13 13 16 23 Greatest Support 40 | 26 40 40 40 Greatest Overweight (x) 6 | . . 4 6 Average Overweight (x) . | . . . 1 Largest Inventory Capacity 8 | 8 8 8 8 Average Capacity 7 | 7 8 8 7 Most Carried 8 | 6 8 8 8 Average Carried 6 | 2 7 7 6 Final Capacity 8 | 8 8 8 5 Final Carried 8 | 6 8 7 4 Class Distribution -------------------- 78% | Mutant 13% | Assassin 8% | Sprinter Dominant Class ---------------- Mutant | -10/Materials Mutant | -9/Materials Mutant | -8/Materials Resources | -11 -10 -9 -8 ----------- Run | Yrd Mat Mat Mat Matter Collected 817 | 232 144 34 407 Remotely . | . . . . Salvage Created 676 | . 176 199 301 Parts 46 | . 8 18 20 Haulers Intercepted . | . . . . Recyclers Shooed 2 | . . . 2 Parts Field Recycled . | . . . . Retrieved Matter . | . . . . Parts Self-Destructed . | . . . . Prevented . | . . . . Kills | -11 -10 -9 -8 ------- Run | Yrd Mat Mat Mat Combat Hostiles Destroyed 21 | . 4 8 9 Melee 1 | . . . 1 Guns 9 | . 4 4 1 AOE 8 | . . 4 4 Classes Destroyed 6 | . 1 3 2 Worker 2 | . . 1 1 Watcher 1 | . . 1 . Swarmer 8 | . . 5 3 Grunt 9 | . 4 3 2 Duelist 1 | . . . 1 Sentry 3 | . . . 3 Best Kill Streak 8 | . 2 8 5 Combat Bots Only 6 | . 2 6 4 Max Kills in Single Turn 4 | . 1 4 4 Gunslinging . | . . . . Exploded 3 | . . 3 3 Melee 1 | . . . 1 Uniques/NPCs Destroyed . | . . . . Combat | -11 -10 -9 -8 -------- Run | Yrd Mat Mat Mat Hostile Shots Fired 246 | . 41 91 114 Missed 74 | . 13 24 37 Damage Taken 2392 | . 324 711 1357 Core 851 | . 79 220 552 Absorbed by Shields . | . . . . Core Remaining (%) 71 | 100 68 45 . Volleys Fired 51 | . 19 20 12 Largest 2 | . 2 2 1 Hottest 83 | . 40 83 63 Shots Fired 84 | . 38 35 11 Gun 77 | . 38 30 9 Cannon . | . . . . Launcher 7 | . . 5 2 Special . | . . . . Kinetic 54 | . 38 16 . Thermal 16 | . . 10 6 Explosive 6 | . . 5 1 Electromagnetic 8 | . . 4 4 Robot Hit Streak 7 | . 5 7 6 Robot Miss Streak 2 | . 2 2 1 Penetration Max . | . . . . Secondary Targets 2 | . 1 1 . Max Gunslinging Chain 1 | . 1 1 . Shots Hit Robots 73 | . 22 22 29 Core Hits 40 | . 10 15 15 Critical Kills 1 | . . 1 . Critical Parts Destroyed 4 | . . . 4 Critical Strikes 7 | . . 2 5 Burn 2 | . . 1 1 Destroy 1 | . . 1 . Smash 4 | . . . 4 Melee Attacks 25 | . . . 25 Impact 25 | . . . 25 Slashing . | . . . . Piercing . | . . . . Sneak Attacks 1 | . . . 1 Combat Hostiles . | . . . . Follow-up Attacks . | . . . . Damage Inflicted 2146 | . 246 828 1072 Guns 616 | . 246 249 121 Cannons . | . . . . Explosions 926 | . . 579 347 Melee 604 | . . . 604 Ramming . | . . . . Kinetic 338 | . 246 92 . Thermal 168 | . . 101 67 Explosive 793 | . . 579 214 Electromagnetic 243 | . . 56 187 Impact 604 | . . . 604 Slashing . | . . . . Piercing . | . . . . Highest Corruption 2 | . . . 2 Average Corruption 2 | . . . 2 Corruption Purged . | . . . . Corruption Blocked . | . . . . Effects 5 | . . . 5 Message Errors 2 | . . . 2 Matter Fused 1 | . . . 1 Energy Discharges 1 | . . . 1 Weapon Failures 1 | . . . 1 Overload Shots . | . . . . Overflow Damage 234 | . . 2 232 Projectiles . | . . . . Explosions 17 | . . 2 15 Melee 217 | . . . 217 Knockbacks 5 | . . . 5 Impact 5 | . . . 5 Kinetic . | . . . . Secondary . | . . . . Self-Inflicted Damage 165 | . . . 165 Shots 5 | . . . 5 Rammed . | . . . . Targets Rammed . | . . . . Kicked . | . . . . Crushed . | . . . . Highest Temperature 360 | . 12 360 37 Average Temperature 119 | . 7 170 14 Received Heat Transfer 1107 | . 177 309 621 Effects 2 | . . 2 . Energy Bleed 1 | . . 1 . Damage (minor) 1 | . . 1 . Siege Activations . | . . . . Robots Corrupted . | . . . . Combat Hostiles . | . . . . Parts Fried 2 | . . . 2 Impact Corruptions 7 | . . . 7 Robots Melted . | . . . . Combat Hostiles . | . . . . Parts Melted . | . . . . Heat Transferred 518 | . . 296 222 Parts Sabotaged . | . . . . Parts Stolen . | . . . . Parts Stripped . | . . . . Power Chain Reactions 2 | . . . 2 Alert | -11 -10 -9 -8 ------- Run | Yrd Mat Mat Mat Peak Influence 412 | . 130 412 303 Initial 173 | . . 54 173 Average 183 | . 61 223 228 Maximum Alert Level 2 | . . 2 1 Low Security (%) 51 | 100 100 42 34 Level 1 45 | . . 35 65 Level 2 2 | . . 22 . Level 3 . | . . . . Level 4 . | . . . . Level 5 . | . . . . High Security . | . . . . Max Security . | . . . . Squads Dispatched 3 | . 1 1 1 Investigation 2 | . 1 . 1 Extermination . | . . . . Reinforcement 1 | . . 1 . Assault . | . . . . Garrison . | . . . . Intercept . | . . . . Searches Triggered . | . . . . Construction Impeded . | . . . . Haulers Reinforced . | . . . . Active Scanning Responses . | . . . . Cargo Convoy Interrupts . | . . . . Stealth | -11 -10 -9 -8 --------- Run | Yrd Mat Mat Mat Distress Signals 3 | . . 3 . Communications Jammed . | . . . . Distress Signals . | . . . . Times Spotted 47 | . 5 20 22 Peak Tracking Total 12 | . 2 12 8 Tactical Retreats 8 | . . 3 5 Traps | -11 -10 -9 -8 ------- Run | Yrd Mat Mat Mat Traps Triggered 5 | . 1 . 4 Indirectly . | . . . . Trap Hack Attempts . | . . . . Triggered . | . . . . Disarmed . | . . . . Reprogrammed . | . . . . Reused . | . . . . Traps Extracted . | . . . . Installed . | . . . . Triggered 1 | . . . 1 Machines | -11 -10 -9 -8 ---------- Run | Yrd Mat Mat Mat Machines Disabled 2 | . . 1 1 Max in Single Turn 1 | . . 1 1 Machines Repaired . | . . . . Machines Dismantled . | . . . . Machines Sabotaged . | . . . . Overloaded Fab Kills . | . . . . Hacking | -11 -10 -9 -8 --------- Run | Yrd Mat Mat Mat Machines Accessed 3 | . 1 . 2 Terminals 3 | . 1 . 2 Fabricators . | . . . . Repair Stations . | . . . . Recycling Units . | . . . . Scanalyzers . | . . . . Garrison Access . | . . . . Total Hacks 7 | . 3 . 4 Successful 2 | . . . 2 Failed 5 | . 3 . 2 Catastrophic 1 | . 1 . . Database Lockouts . | . . . . Manual 3 | . 3 . . Terminals 7 | . 3 . 4 Fabricators . | . . . . Repair Stations . | . . . . Recycling Units . | . . . . Scanalyzers . | . . . . Garrison Access . | . . . . Terminal Hacks 2 | . . . 2 Record 1 | . . . 1 Zone Layout 1 | . . . 1 Fabricator Hacks . | . . . . Repair Station Hacks . | . . . . Recycling Unit Hacks . | . . . . Scanalyzer . | . . . . Garrison Access Hacks . | . . . . Unauthorized Hacks . | . . . . Terminals . | . . . . Fabricators . | . . . . Repair Stations . | . . . . Recycling Units . | . . . . Scanalyzers . | . . . . Garrison Access . | . . . . Data Cores Recovered . | . . . . Used . | . . . . Hacking Detections 2 | . 1 . 1 Full Trace Events 1 | . 1 . . Feedback Events . | . . . . Feedback Blocked . | . . . . Robot Schematics Acquired . | . . . . Robots Built . | . . . . Authchips . | . . . . Time . | . . . . Total Robot Build Rating . | . . . . Part Schematics Acquired . | . . . . Parts Built . | . . . . Authchips . | . . . . Time . | . . . . Total Part Build Rating . | . . . . Parts Repaired . | . . . . Time . | . . . . Parts Recycled . | . . . . Recycled Matter . | . . . . Retrieved Matter . | . . . . Retrieved Components . | . . . . Parts Scanalyzed . | . . . . Part Schematics Acquired . | . . . . Parts Damaged . | . . . . Bothacking | -11 -10 -9 -8 ------------ Run | Yrd Mat Mat Mat Used RIF Installer . | . . . . Robots Hacked . | . . . . Non-combat . | . . . . Combat . | . . . . Robot Hacks Applied . | . . . . Relay Couplers Released . | . . . . Fabnet Peak Effective % . | . . . . Robots Rewired . | . . . . Allies Hacked . | . . . . Hacks Repelled . | . . . . Allies | -11 -10 -9 -8 -------- Run | Yrd Mat Mat Mat Total Allies . | . . . . Largest Group . | . . . . Highest-Rated Group . | . . . . Highest-Rated Ally . | . . . . Total Orders . | . . . . Ally Attacks . | . . . . Total Damage . | . . . . Kills . | . . . . Allies Corrupted . | . . . . Allies Melted . | . . . . Intel | -11 -10 -9 -8 ------- Run | Yrd Mat Mat Mat Robot Analysis Total . | . . . . Derelict Logs Recovered . | . . . . Drone Launches . | . . . . Drone Recoveries . | . . . . Exploration | -11 -10 -9 -8 ------------- Run | Yrd Mat Mat Mat Turns Passed 1260 | 54 258 154 794 Spaces Moved 831 | 40 145 166 480 Core 52 | 3 . 2 47 Treads 190 | . 89 14 87 Legs 130 | . . . 130 Wheels 309 | 37 56 . 216 Hover . | . . . . Flight 150 | . . 150 . Fastest Speed 31 | 50 90 31 95 Average Speed 111 | 87 132 47 129 Slowest Speed 350 | 90 160 250 350 Overloaded Moves . | . . . . Propulsion Burnouts . | . . . . Robots Hopped . | . . . . Cave-ins Triggered . | . . . . Exploration Rate (%) 22 | 3 22 28 37 Regions Visited 3 Branch Regions . Pre-discovered Areas . | . . . . Known Exits Taken . | . . . . Unknown Exits Taken 3 | 1 1 1 . Scrap Searched . | . . . . Spaces Dug . | . . . . Terrain Destroyed 33 | . . 24 9 Melee . | . . . . Projectile . | . . . . AOE 33 | . . 24 9 Terrain Rammed . | . . . . Walls Destroyed . | . . . . Machines Disabled . | . . . . Actions | -11 -10 -9 -8 --------- Run | Yrd Mat Mat Mat Total 1041 | 58 179 208 596 Wait 19 | . . . 19 Move 828 | 39 144 165 480 Hop . | . . . . Pick Up 43 | 12 7 6 18 Fast Attach 11 | . . 2 9 Attach 30 | 6 1 6 17 Detach 2 | . . . 2 Swap 13 | 1 2 6 4 Drop 19 | . 6 3 10 Fire 51 | . 19 20 12 Melee 25 | . . . 25 Ram . | . . . . Kick . | . . . . Crush . | . . . . Escape Stasis . | . . . . Rewire . | . . . . Trap . | . . . . Miscellaneous . | . . . . Route ------- -11/Scrapyard -10/Materials -9/Materials -8/Materials History --------- Turn | Location | Event 17 | -11/Scrapyard | Discovered new exit (range 16) 55 | -11/Scrapyard | Entered Materials 309 | -10/Materials | Discovered new exit (range 3) 313 | -10/Materials | Entered another Materials area 313 | -9/Materials | Evolved 2 slots: Propulsion x2 446 | -9/Materials | Core integrity fell below 50% 449 | -9/Materials | Discovered new exit (range 14) 463 | -9/Materials | Lost 5 parts (4n1w) 467 | -9/Materials | Entered another Materials area 467 | -8/Materials | Evolved 2 slots: Power x1, Utility x1 650 | -8/Materials | Lost 6 parts (2p2n2w) 721 | -8/Materials | Build established: Mutant 941 | -8/Materials | Core integrity fell below 50% 948 | -8/Materials | Lost 3 parts (1p2n) 1219 | -8/Materials | Core integrity fell below 20% 1261 | -8/Materials | Destroyed by G-47 Trooper with Particle Gun Last Messages --------------- 01205_ Electrolysis Chamber disabled. 01207_ K-01 Serf cleans the Matter Pump. 01217_ >> Machine Analyzer network decryption results: 01217_ Terminal x1 01226_ RLVO&OVH7XYFUM0YSNNKMAEE2 2R>Y B 01231_ >> Machine Analyzer network decryption results: 01231_ Terminal x1 01243_ XO&5SVQ2/E:FWZ1A%,OPDRT 03FEZQWNLI 01246_ G-47 Trooper destroyed. 01247_ Dropped Nuclear Core. 01251_ Imp. Sensor Array destroyed. 01252_ System corrupted: Shock Rifle failed to cycle. 01253_ Critical hit (Burn: +37). 01254_ Shock Rifle destroyed. 01257_ Critical hit (Burn: +37). 01258_ >> Machine Analyzer network decryption results: 01258_ Scanalyzer x1 01260_ L-31 Rogue destroyed. 01260_ Door malfunctions. 01260_ Lgt. Nuclear Core destroyed. Map ----- +----------------------------------------------------+ | | | | | | | | | | | | | | | | | | | | | | | | | | | ?????????????????????????????????????????????????? | | ??????????????????????????????????????????######?? | | ?????????????????????????????????????????# """ ? | | ?????????????????????????????##??????????# """ # | | ????????????????????????????# ??????????# """ + | | ????????????????????????????# ######?????# # | | ???????????##???????????????# # #?????#! # | | ???????????? ?????????????# / "" #???########### | | ?????????????? ???????????# # T" ##### # | | ????????????????# ##########b# "" / / """ # | | ????????????????# !/=ggg# ##### "T" # | | ???"""??""??????# =%[%g # #???# + | | ???"""??T"??????# @ = # #???# // # | | ???"""??""?+ u g / ! #???# / # | | ???????????###########;######a# #???# / # | | ???????????????????? ?????# ######???# # | | ?????????????????? """?"""??# #????????########### | | ?????????????????# """?"""??# #????? | | ?????????????????# """?"""??? #????? | | ?????????????????# """?"""???+#???????""" """ "" | | ???????????????????"""?"""????????????"""? """ "" | | ?????????????????????????????"""??????""" """ " | | ?????????????????????????????"""????? | | ?????????????????????????????"S?????? | | ?????????????????????????????"""??????""" """ "" | | ??????????????????????????????""??????""" """ "" | | ????????????????????"""???????????????""" """ "" | | ????????????????????"""????????"""??? | | ????????????????????"""????????"""??? | | ???????????????????????????????"""????""" """ "" | | ????????????????????"""???????????????"""??""" "" | | ????????????????????"""???????????????"""??""" "" | | ????????????????????"""???????????????????? | | ?????????????????????????????????????????? | | ??????????????????????????????????????"""? """ "" | | ??????????????????????????????????????"""??""" "" | | ??????????????????????????????????????"""??""" "" | +----------------------------------------------------+ Best States ------------- Heat Dissipation 31 Energy Generation 23 Energy Capacity 420 Matter Stores 300 Matter Capacity 300 Sight Range 18 Robot Scan Range 15 Terrain Scan Density 10 Evasion (%) 63 Recoil Reduction 2 Item Schematics ----------------- None Robot Schematics ------------------ None Fabricated ------------ Nothing Alien Tech Used ----------------- None Achievements -------------- None Challenges ------------ None Game ------ Seed CorruptionStormProjector Manual? 0 Play Time 00:19:51 Cumulative 67.2 hours Start 2024.06.26 @ 21:33:03 End 2024.06.26 @ 21:51:18 Sessions 1 Manual Loads 0 Difficulty Rogue Special Mode None Game No. 100 Rogue 100 Adventurer 0 Explorer 0 Win Type - Total 0 Types 0/0/0/0/0/0/0/0/0 Lore% 34 Gallery% 48 Achievement% 32 Wizard Run 0 Options --------- Layout 0 ASCII 0 Keyboard 0 Movement Mouse Keybinds 0 Fullscreen 1 Font 24/Smallcaps Map View 76x50 Zoom Use 0% Tactical HUD 1 Map Filters NONE Filters NONE Steam 1 RUN: ce397fea-4edc-475f-a573-c9353948e59b